Workbook

Sheet linear
B1: Váha | C1: Firma 1 | D1: Firma 2 | E1: Firma 3 | F1: Firma 4 | G1: Body 1 | H1: Body 2 | I1: Body 3 | J1: Body 4 | K1: RESULTS 1 | L1: RESULTS 2 | M1: RESULTS 3 | N1: RESULTS 4 | O1: Prokázání | P1: Zdůvodnění
A2: Cena přístroje | C2: 500000 | D2: 600000 | E2: 550000 | F2: 260000 | G2: =(IF(1-((C2-MIN($C2:$F2))/MIN($C2:$F2))<0,0,1-((C2-MIN($C2:$F2))/MIN($C2:$F2))))*100 -> 7.692307692 | H2: 0 | I2: 0 | J2: 100 | K2: =IF($B2="","",$B2*G2) ->  | L2: =IF($B2="","",$B2*H2) ->  | M2: =IF($B2="","",$B2*I2) ->  | N2: =IF($B2="","",$B2*J2) -> 
A3: Cena 1 ks příslušenství | C3: 300 | D3: 330 | E3: 390 | F3: 420 | G3: 100 | H3: 90 | I3: 70 | J3: 60
A4: Cena PBTK | C4: 0 | D4: 0 | E4: 0 | F4: 10000 | G4: 100 | H4: 100 | I4: 100 | J4: 0
A5: Jednoduchost použití | C5: ANO | D5: ANO | E5: NE | F5: ANO | G5: =(IF(C5="ANO",100%,0%))*100 -> 100 | H5: =(IF(D5="ANO",100%,0%))*100 -> 100 | I5: =(IF(E5="ANO",100%,0%))*100 -> 0 | J5: =(IF(F5="ANO",100%,0%))*100 -> 100
A6: Vědecká evidence – délka evidence v letech | C6: 10 | D6: 12 | E6: 2 | F6: 4 | G6: =(C6/MAX($C6:$F6))*100 -> 83.33333333 | H6: =(D6/MAX($C$6:$F$6))*100 -> 100 | I6: =(E6/MAX($C$6:$F$6))*100 -> 16.66666667 | J6: =(F6/MAX($C$6:$F$6))*100 -> 33.33333333
A7: Zkrácení doby léčby pacienta ve dnech | C7: 1 | D7: 2 | E7: 0 | F7: 1 | G7: =(C7/MAX($C7:$F7))*100 -> 50 | H7: =(D7/MAX($C7:$F7))*100 -> 100 | I7: 0 | J7: 50
A8: Vědecká evidence – survival rate | C8: 0.95 | D8: 0.98 | E8: 0.98 | F8: 0.95 | G8: =(C8/MAX($C8:$F8))*100 -> 96.93877551 | H8: 100 | I8: 100 | J8: 96.93877551
A9: Doba použití u výkonu (min) | C9: 30 | D9: 25 | E9: 30 | F9: 60 | G9: =(IF(1-((C9-MIN($C9:$F9))/MIN($C9:$F9))<0,0,1-((C9-MIN($C9:$F9))/MIN($C9:$F9))))*100 -> 80 | H9: 100 | I9: 80 | J9: 0
A10: Trénink lékařů | C10: 0 | D10: 0 | E10: 10000 | F10: 10000 | G10: =IF(MIN($C10:$F10)=0,IF(C10=0,100,0),(C10-MIN($C10:$F10))/MIN($C10:$F10)) -> 100 | H10: =IF(MIN($C10:$F10)=0,IF(D10=0,100,0),(D10-MIN($C10:$F10))/MIN($C10:$F10)) -> 100 | I10: =IF(MIN($C10:$F10)=0,IF(E10=0,100,0),(E10-MIN($C10:$F10))/MIN($C10:$F10)) -> 0 | J10: =IF(MIN($C10:$F10)=0,IF(F10=0,100,0),(F10-MIN($C10:$F10))/MIN($C10:$F10)) -> 0
A11: Společensky prospěšné aktivity | C11: ANO | D11: ANO | E11: NE | F11: NE | G11: =(IF(C11="ANO",100%,0%))*100 -> 100 | H11: =(IF(D11="ANO",100%,0%))*100 -> 100 | I11: =(IF(E11="ANO",100%,0%))*100 -> 0 | J11: =(IF(F11="ANO",100%,0%))*100 -> 0
A12: Náhradní díly | C12: 2000 | D12: 2000 | E12: 10000 | F12: 50000 | G12: =(IF(1-((C12-MIN($C12:$F12))/MIN($C12:$F12))<0,0,1-((C12-MIN($C12:$F12))/MIN($C12:$F12))))*100 -> 100 | H12: 100 | I12: 0 | J12: 0
A13: Dodací doba (dny) | C13: 2 | D13: 1 | E13: 2 | F13: 1 | G13: 0 | H13: 100 | I13: 0 | J13: 100
A14: Etické chování firmy | C14: ANO | D14: ANO | E14: NE | F14: ANO | G14: =(IF(C14="ANO",100%,0%))*100 -> 100 | H14: 100 | I14: 0 | J14: 100
A15: Ekologické zaměření firmy | C15: ANO | D15: ANO | E15: NE | F15: NE | G15: 100 | H15: 100 | I15: 0 | J15: 0
A16: Upgrady zdarma | C16: ANO | D16: ANO | E16: ANO | F16: ANO | G16: 100 | H16: 100 | I16: 100 | J16: 100
A17: Náročnost obsluhy | C17: malá | D17: malá | E17: střední | F17: velká | G17: 100 | H17: 100 | I17: 50 | J17: 0
A18: Spotřeba el. energie (kWh) | C18: 6 | D18: 5 | E18: 12 | F18: 20 | G18: =(IF(1-((C18-MIN($C18:$F18))/MIN($C18:$F18))<0,0,1-((C18-MIN($C18:$F18))/MIN($C18:$F18))))*100 -> 80 | H18: =(IF(1-((D18-MIN($C18:$F18))/MIN($C18:$F18))<0,0,1-((D18-MIN($C18:$F18))/MIN($C18:$F18))))*100 -> 100 | I18: =(IF(1-((E18-MIN($C18:$F18))/MIN($C18:$F18))<0,0,1-((E18-MIN($C18:$F18))/MIN($C18:$F18))))*100 -> 0 | J18: =(IF(1-((F18-MIN($C18:$F18))/MIN($C18:$F18))<0,0,1-((F18-MIN($C18:$F18))/MIN($C18:$F18))))*100 -> 0
A19: Bezpečné použití | C19: ANO | D19: ANO | E19: ANO | F19: ANO | G19: =(IF(C19="ANO",100%,0%))*100 -> 100 | H19: 100 | I19: 100 | J19: 100
A20: Zařazení příslušenství v číselníku VZP | C20: ANO | D20: ANO | E20: NE | F20: NE | G20: 100 | H20: 100 | I20: 0 | J20: 0
A21: Rehospitalizace pacienta do 1 roku | C21: 0.03 | D21: 0.01 | E21: 0.01 | F21: 0.05 | G21: =(IF(1-((C21-MIN($C21:$F21))/MIN($C21:$F21))<0,0,1-((C21-MIN($C21:$F21))/MIN($C21:$F21))))*100 -> 0 | H21: =(IF(1-((D21-MIN($C21:$F21))/MIN($C21:$F21))<0,0,1-((D21-MIN($C21:$F21))/MIN($C21:$F21))))*100 -> 100 | I21: =(IF(1-((E21-MIN($C21:$F21))/MIN($C21:$F21))<0,0,1-((E21-MIN($C21:$F21))/MIN($C21:$F21))))*100 -> 100 | J21: =(IF(1-((F21-MIN($C21:$F21))/MIN($C21:$F21))<0,0,1-((F21-MIN($C21:$F21))/MIN($C21:$F21))))*100 -> 0
A22: CELKEM | B22: =SUM(B2:B21) -> 0 | K22: =SUM(K2:K21) -> 0 | L22: =SUM(L2:L21) -> 0 | M22: =SUM(M2:M21) -> 0 | N22: =SUM(N2:N21) -> 0
K23: =RANK(K22,$K$22:$N$22) -> 1 | L23: =RANK(L22,$K$22:$N$22) -> 1 | M23: =RANK(M22,$K$22:$N$22) -> 1 | N23: =RANK(N22,$K$22:$N$22) -> 1
A25: Celkové náklady | C25: =400*5*C3+C2 -> 1100000 | D25: =400*5*D3+D2 -> 1260000 | E25: =400*5*E3+E2 -> 1330000 | F25: =400*5*F3+F2 -> 1100000

Sheet non-linear
B1: Váha | C1: Firma 1 | D1: Firma 2 | E1: Firma 3 | F1: Firma 4 | G1: Body 1 | H1: Body 2 | I1: Body 3 | J1: Body 4 | K1: RESULTS 1 | L1: RESULTS 2 | M1: RESULTS 3 | N1: RESULTS 4 | O1: Prokázání | P1: Zdůvodnění
A2: Cena přístroje | C2: 500000 | D2: 600000 | E2: 550000 | F2: 260000 | G2: =MIN($C2:$F2)/C2*100 -> 52 | H2: 43.33333333 | I2: 47.27272727 | J2: 100 | K2: =IF($B2="","",$B2*G2) ->  | L2: =IF($B2="","",$B2*H2) ->  | M2: =IF($B2="","",$B2*I2) ->  | N2: =IF($B2="","",$B2*J2) -> 
A3: Cena 1 ks příslušenství | C3: 300 | D3: 330 | E3: 390 | F3: 420 | G3: 100 | H3: 90.90909091 | I3: 76.92307692 | J3: 71.42857143
A4: Cena PBTK | C4: 0 | D4: 0 | E4: 0 | F4: 10000 | G4: =IF(MIN($C4:$F4)=0,IF(C4=0,100,0),(MIN($C4:$F4))/C4) -> 100 | H4: =IF(MIN($C4:$F4)=0,IF(D4=0,100,0),(MIN($C4:$F4))/D4) -> 100 | I4: =IF(MIN($C4:$F4)=0,IF(E4=0,100,0),(MIN($C4:$F4))/E4) -> 100 | J4: =IF(MIN($C4:$F4)=0,IF(F4=0,100,0),(MIN($C4:$F4))/F4) -> 0
A5: Jednoduchost použití | C5: ANO | D5: ANO | E5: NE | F5: ANO | G5: =(IF(C5="ANO",100%,0%))*100 -> 100 | H5: =(IF(D5="ANO",100%,0%))*100 -> 100 | I5: =(IF(E5="ANO",100%,0%))*100 -> 0 | J5: =(IF(F5="ANO",100%,0%))*100 -> 100
A6: Vědecká evidence – délka evidence v letech | C6: 10 | D6: 12 | E6: 2 | F6: 4 | G6: =(C6/MAX($C6:$F6))*100 -> 83.33333333 | H6: =(D6/MAX($C$6:$F$6))*100 -> 100 | I6: =(E6/MAX($C$6:$F$6))*100 -> 16.66666667 | J6: =(F6/MAX($C$6:$F$6))*100 -> 33.33333333
A7: Zkrácení doby léčby pacienta ve dnech | C7: 1 | D7: 2 | E7: 0 | F7: 1 | G7: =(C7/MAX($C7:$F7))*100 -> 50 | H7: =(D7/MAX($C7:$F7))*100 -> 100 | I7: 0 | J7: 50
A8: Vědecká evidence – survival rate | C8: 0.95 | D8: 0.98 | E8: 0.98 | F8: 0.95 | G8: =(C8/MAX($C8:$F8))*100 -> 96.93877551 | H8: 100 | I8: 100 | J8: 96.93877551
A9: Doba použití u výkonu (min) | C9: 30 | D9: 25 | E9: 30 | F9: 60 | G9: =MIN($C9:$F9)/C9*100 -> 83.33333333 | H9: =MIN($C9:$F9)/D9*100 -> 100 | I9: =MIN($C9:$F9)/E9*100 -> 83.33333333 | J9: =MIN($C9:$F9)/F9*100 -> 41.66666667
A10: Trénink lékařů | C10: 0 | D10: 0 | E10: 10000 | F10: 10000 | G10: =IF(MIN($C10:$F10)=0,IF(C10=0,100,0),(MIN($C10:$F10))/C10) -> 100 | H10: =IF(MIN($C10:$F10)=0,IF(D10=0,100,0),(MIN($C10:$F10))/D10) -> 100 | I10: =IF(MIN($C10:$F10)=0,IF(E10=0,100,0),(MIN($C10:$F10))/E10) -> 0 | J10: =IF(MIN($C10:$F10)=0,IF(F10=0,100,0),(MIN($C10:$F10))/F10) -> 0
A11: Společensky prospěšné aktivity | C11: ANO | D11: ANO | E11: NE | F11: NE | G11: =(IF(C11="ANO",100%,0%))*100 -> 100 | H11: =(IF(D11="ANO",100%,0%))*100 -> 100 | I11: =(IF(E11="ANO",100%,0%))*100 -> 0 | J11: =(IF(F11="ANO",100%,0%))*100 -> 0
A12: Náhradní díly | C12: 2000 | D12: 2000 | E12: 10000 | F12: 50000 | G12: =MIN($C12:$F12)/C12*100 -> 100 | H12: =MIN($C12:$F12)/D12*100 -> 100 | I12: =MIN($C12:$F12)/E12*100 -> 20 | J12: =MIN($C12:$F12)/F12*100 -> 4
A13: Dodací doba (dny) | C13: 2 | D13: 1 | E13: 2 | F13: 1 | G13: =IF(MIN($C13:$F13)=0,IF(C13=0,100,0),(MIN($C13:$F13))/C13*100) -> 50 | H13: =IF(MIN($C13:$F13)=0,IF(D13=0,100,0),(MIN($C13:$F13))/D13*100) -> 100 | I13: =IF(MIN($C13:$F13)=0,IF(E13=0,100,0),(MIN($C13:$F13))/E13*100) -> 50 | J13: =IF(MIN($C13:$F13)=0,IF(F13=0,100,0),(MIN($C13:$F13))/F13*100) -> 100
A14: Etické chování firmy | C14: ANO | D14: ANO | E14: NE | F14: ANO | G14: =(IF(C14="ANO",100%,0%))*100 -> 100 | H14: 100 | I14: 0 | J14: 100
A15: Ekologické zaměření firmy | C15: ANO | D15: ANO | E15: NE | F15: NE | G15: 100 | H15: 100 | I15: 0 | J15: 0
A16: Upgrady zdarma | C16: ANO | D16: ANO | E16: ANO | F16: ANO | G16: 100 | H16: 100 | I16: 100 | J16: 100
A17: Náročnost obsluhy | C17: malá | D17: malá | E17: střední | F17: velká | G17: 100 | H17: 100 | I17: 50 | J17: 0
A18: Spotřeba el. energie (kWh) | C18: 6 | D18: 5 | E18: 12 | F18: 20 | G18: =(MIN($C18:$F18)/C18)*100 -> 83.33333333 | H18: =(MIN($C18:$F18)/D18)*100 -> 100 | I18: =(MIN($C18:$F18)/E18)*100 -> 41.66666667 | J18: =(MIN($C18:$F18)/F18)*100 -> 25
A19: Bezpečné použití | C19: ANO | D19: ANO | E19: ANO | F19: ANO | G19: =(IF(C19="ANO",100%,0%))*100 -> 100 | H19: 100 | I19: 100 | J19: 100
A20: Zařazení příslušenství v číselníku VZP | C20: ANO | D20: ANO | E20: NE | F20: NE | G20: 100 | H20: 100 | I20: 0 | J20: 0
A21: Rehospitalizace pacienta do 1 roku | C21: 0.03 | D21: 0.01 | E21: 0.01 | F21: 0.05 | G21: =MIN($C21:$F21)/C21*100 -> 33.33333333 | H21: =MIN($C21:$F21)/D21*100 -> 100 | I21: =MIN($C21:$F21)/E21*100 -> 100 | J21: =MIN($C21:$F21)/F21*100 -> 20
A22: CELKEM | B22: =SUM(B2:B21) -> 0 | K22: =SUM(K2:K21) -> 0 | L22: =SUM(L2:L21) -> 0 | M22: =SUM(M2:M21) -> 0 | N22: =SUM(N2:N21) -> 0
K23: =RANK(K22,$K$22:$N$22) -> 1 | L23: =RANK(L22,$K$22:$N$22) -> 1 | M23: =RANK(M22,$K$22:$N$22) -> 1 | N23: =RANK(N22,$K$22:$N$22) -> 1
A25: Celkové náklady | C25: =400*5*C3+C2 -> 1100000 | D25: =400*5*D3+D2 -> 1260000 | E25: =400*5*E3+E2 -> 1330000 | F25: =400*5*F3+F2 -> 1100000

Sheet Intro (hidden)
A2: Pouze pro studijní účely!!!
A4: Tento příklad je pouze teoretický a má informativní charakter. Při jeho sestavování byly brány v úvahu metody prezentované na semináři "Jak může zavedení kvalitativních kritérií MEAT zvýšit výkonnost nemocnic" konaném dne 7. června 2016 v Praze. Organizátoři neručí za jakékoliv škody či újmu způsobenou v důsledku použití závěrů tohoto teoretického příkladu.
